fUST/lending_fUST_20240714
["ID","MTS","AMOUNT","RATE_DAILY","PERIOD"]
[332010235,1720933843598,-2233.99,0.00024657,2]
[332010237,1720933843612,-500.0,0.00024657,2]
[332010239,1720933843621,-500.0,0.00024657,2]
[332010241,1720933843630,-500.0,0.00024657,2]
[332010243,1720933843639,-500.0,0.00024657,2]
[332010245,1720933843649,-500.0,0.00024657,2]
[332010247,1720933843658,-500.0,0.00024657,2]
[332010249,1720933843668,-500.0,0.00024657,2]
[332010251,1720933843678,-500.0,0.00024657,2]
[332010253,1720933843688,-500.0,0.00024657,2]
[332010255,1720933843698,-500.0,0.00024657,2]
[332010256,1720933843708,-500.0,0.00024657,2]
[332010258,1720933843718,-500.0,0.00024657,2]
[332010260,1720933843727,-565.32,0.00024657,2]
[332010262,1720933843737,-500.0,0.00024657,2]
[332010264,1720933843747,-500.0,0.00024657,2]
[332010266,1720933843756,-500.0,0.00024657,2]
[332010268,1720933843765,-500.0,0.00024657,2]
[332010270,1720933843775,-500.0,0.00024657,2]
[332010272,1720933843784,-500.0,0.00024657,2]
[332010274,1720933843794,-500.0,0.00024657,2]
[332010277,1720933843805,-500.0,0.00024657,2]
[332010278,1720933843814,-500.0,0.00024657,2]
[332010280,1720933843824,-500.0,0.00024657,2]
[332010283,1720933843833,-500.0,0.00024657,2]
[332010285,1720933843843,-500.0,0.00024657,2]
[332010286,1720933843853,-500.0,0.00024657,2]
[332010289,1720933843868,-500.0,0.00024657,2]
[332010291,1720933843877,-500.0,0.00024657,2]
[332010293,1720933843887,-500.0,0.00024657,2]
[332010295,1720933843896,-500.0,0.00024657,2]
[332010297,1720933843906,-400.31536724,0.00024657,2]
[332010299,1720933843916,-500.0,0.00024657,2]
[332010302,1720933843925,-500.0,0.00024657,2]
[332010305,1720933843935,-500.0,0.00024657,2]
[332010308,1720933843944,-500.0,0.00024657,2]
[332010311,1720933843954,-500.0,0.00024657,2]
[332010314,1720933843963,-500.0,0.00024657,2]
[332010317,1720933843973,-500.0,0.00024657,2]
[332010319,1720933843982,-530.95,0.00024657,2]
[332010321,1720933843992,-500.0,0.00024657,2]
[332010322,1720933844001,-500.0,0.00024657,2]
[332010324,1720933844012,-500.0,0.00024657,2]
[332010325,1720933844026,-500.0,0.00024657,2]
[332010326,1720933844041,-500.0,0.00024657,2]
[332010327,1720933844057,-896.55,0.00024657,2]
[332010328,1720933844068,-500.0,0.00024657,2]
[332010329,1720933844084,-500.0,0.00024657,2]
[332010330,1720933844098,-500.0,0.00024657,2]
[332010331,1720933844118,-3047.1,0.00024657,2]
[332010332,1720933844132,-500.0,0.00024657,2]
[332010333,1720933844149,-200.0,0.00024657,7]
[332010334,1720933844165,-500.0,0.00024657,2]
[332010335,1720933844181,-500.0,0.00024657,2]
[332010336,1720933844194,-500.0,0.00024657,2]
[332010337,1720933844209,-500.0,0.00024657,2]
[332010338,1720933844224,-1261.81,0.00024657,2]
[332010339,1720933844235,-500.0,0.00024657,2]
[332010340,1720933844248,-554.16443324,0.00024657,2]
[332010341,1720933844260,-443.02789155,0.00024657,2]
[332010342,1720933844274,-500.0,0.00024657,2]
[332010343,1720933844289,-500.0,0.00024657,2]
[332010344,1720933844303,-500.0,0.00024657,2]
[332010345,1720933844319,-511.83470757,0.00024657,2]
[332010346,1720933844333,-500.0,0.00024657,2]
[332010347,1720933844344,-502.03829163,0.00024657,2]
[332010348,1720933844354,-1156.42,0.00024657,2]
[332010349,1720933844374,-500.0,0.00024657,2]
[332010350,1720933844391,-500.0,0.00024657,2]
[332010351,1720933844405,-500.0,0.00024657,2]
[332010352,1720933844417,-618.2,0.00024657,2]
[332010353,1720933844431,-500.0,0.00024657,2]
[332010354,1720933844444,-500.0,0.00024657,2]
[332010355,1720933844457,-500.0,0.00024657,2]
[332010356,1720933844469,-500.0,0.00024657,2]
[332010357,1720933844481,-500.0,0.00024657,2]
[332010358,1720933844492,-522.26950165,0.00024657,2]
[332010359,1720933844504,-500.0,0.00024657,2]
[332010360,1720933844515,-500.0,0.00024657,2]
[332010361,1720933844527,-624.10402067,0.00024657,2]
[332010362,1720933844538,-500.0,0.00024657,2]
[332010363,1720933844550,-500.0,0.00024657,2]
[332010364,1720933844562,-500.0,0.00024657,2]
[332010365,1720933844574,-500.0,0.00024657,2]
[332010366,1720933844585,-500.0,0.00024657,2]
[332010367,1720933844598,-500.0,0.00024657,2]
[332010368,1720933844617,-500.0,0.00024657,2]
[332010369,1720933844630,-510.41277995,0.00024657,2]
[332010370,1720933844643,-500.0,0.00024657,2]
[332010371,1720933844657,-500.0,0.00024657,2]
[332010372,1720933844669,-500.0,0.00024657,2]
[332010373,1720933844682,-500.0,0.00024657,2]
[332010374,1720933844694,-500.0,0.00024657,2]
[332010375,1720933844706,-500.0,0.00024657,2]
[332010376,1720933844720,-500.0,0.00024657,2]
[332010377,1720933844732,-500.0,0.00024657,2]
[332010378,1720933844743,-500.0,0.00024657,2]
[332010379,1720933844754,-500.0,0.00024657,2]
[332010380,1720933844766,-500.0,0.00024657,2]
[332010383,1720933844778,-500.0,0.00024657,2]
[332010385,1720933844789,-502.63771966,0.00024657,2]
[332010387,1720933844801,-500.0,0.00024657,2]
[332010389,1720933844813,-500.0,0.00024657,2]
[332010392,1720933844825,-500.0,0.00024657,2]
[332010394,1720933844837,-500.0,0.00024657,2]
[332010396,1720933844849,-500.0,0.00024657,2]
[332010398,1720933844861,-500.0,0.00024657,2]
[332010401,1720933844873,-500.0,0.00024657,2]
[332010403,1720933844884,-500.0,0.00024657,2]
[332010405,1720933844896,-544.34096394,0.00024657,2]
[332010408,1720933844908,-753.17,0.00024657,2]
[332010410,1720933844921,-500.0,0.00024657,2]
[332010412,1720933844933,-500.0,0.00024657,2]
[332010415,1720933844945,-500.0,0.00024657,2]
[332010417,1720933844957,-500.0,0.00024657,2]
[332010419,1720933844969,-218.41697337,0.00024657,2]
[332010432,1720933845060,-500.0,0.00024657,2]
[332010435,1720933845099,-500.0,0.00024657,2]
[332010437,1720933845114,-502.73552157,0.00024657,2]
[332010439,1720933845124,-500.0,0.00024657,2]
[332010441,1720933845134,-500.0,0.00024657,2]
[332010443,1720933845144,-500.0,0.00024657,2]
[332010445,1720933845154,-500.0,0.00024657,2]
[332010447,1720933845164,-198.19295574,0.00024657,2]
[332010450,1720933845174,-500.0,0.00024657,2]
[332010452,1720933845184,-500.0,0.00024657,2]
[332010454,1720933845194,-500.0,0.00024657,2]
[332010456,1720933845204,-500.0,0.00024657,2]
[332010458,1720933845213,-500.0,0.00024657,2]
[332010460,1720933845223,-500.0,0.00024657,2]
[332010462,1720933845232,-508.04637853,0.00024657,2]
[332010464,1720933845242,-500.0,0.00024657,2]
[332010466,1720933845251,-503.73098425,0.00024657,2]
[332010468,1720933845261,-500.0,0.00024657,2]
[332010470,1720933845270,-523.05738343,0.00024657,2]
[332010472,1720933845280,-500.0,0.00024657,2]
[332010474,1720933845289,-500.0,0.00024657,2]
[332010476,1720933845298,-500.0,0.00024657,2]
[332010478,1720933845307,-500.0,0.00024657,2]
[332010480,1720933845317,-500.0,0.00024657,2]
[332010482,1720933845327,-500.0,0.00024657,2]
[332010484,1720933845336,-500.0,0.00024657,2]
[332010486,1720933845345,-500.0,0.00024657,2]
[332010488,1720933845355,-500.0,0.00024657,2]
[332010490,1720933845371,-511.65,0.00024657,2]
[332010492,1720933845381,-500.0,0.00024657,2]
[332010494,1720933845390,-503.12670791,0.00024657,2]
[332010496,1720933845399,-500.0,0.00024657,2]
[332010498,1720933845409,-15867.03,0.00024657,2]
[332010500,1720933845418,-500.0,0.00024657,2]
[332010502,1720933845428,-500.0,0.00024657,2]
[332010504,1720933845437,-222.12046482,0.00024657,2]
[332010506,1720933845447,-500.0,0.00024657,2]
[332010508,1720933845457,-500.0,0.00024657,2]
[332010510,1720933845466,-500.0,0.00024657,2]
[332010512,1720933845475,-500.0,0.00024657,2]
[332010513,1720933845484,-500.0,0.00024657,2]
[332010515,1720933845494,-500.0,0.00024657,2]
[332010517,1720933845503,-500.0,0.00024657,2]
[332010520,1720933845513,-500.0,0.00024657,2]
[332010521,1720933845523,-897.68,0.00024657,2]
[332010523,1720933845533,-500.0,0.00024657,2]
[332010526,1720933845543,-500.0,0.00024657,2]
[332010528,1720933845554,-500.0,0.00024657,2]
[332010530,1720933845563,-500.0,0.00024657,2]
[332010531,1720933845572,-500.0,0.00024657,2]
[332010534,1720933845582,-501.45810336,0.00024657,2]
[332010536,1720933845591,-500.0,0.00024657,2]
[332010538,1720933845602,-500.0,0.00024657,2]
[332010540,1720933845615,-500.0,0.00024657,2]
[332010542,1720933845626,-500.0,0.00024657,2]
[332010545,1720933845636,-500.0,0.00024657,2]
[332010548,1720933845646,-500.0,0.00024657,2]
[332010550,1720933845655,-500.0,0.00024657,2]
[332010553,1720933845665,-500.0,0.00024657,2]
[332010555,1720933845675,-500.0,0.00024657,2]
[332010557,1720933845686,-500.0,0.00024657,2]
[332010559,1720933845695,-500.0,0.00024657,2]
[332010561,1720933845706,-500.0,0.00024657,2]
[332010563,1720933845715,-502.34002081,0.00024657,2]
[332010565,1720933845725,-500.0,0.00024657,2]
[332010567,1720933845735,-500.0,0.00024657,2]
[332010569,1720933845744,-500.0,0.00024657,2]
[332010571,1720933845753,-293.78885238,0.00024658,2]
[332010574,1720933845763,-1564.50896734,0.00024694,2]
[332010577,1720933845773,-1564.50896734,0.00024831,2]
[332010580,1720933845782,-500.0,0.0002489,2]
[332010583,1720933845791,-300.0,0.00024891,2]
[332010585,1720933845800,-302.18418731,0.000249,2]
[332010588,1720933845809,-12374.69450547,0.00024921,3]
[332010629,1720933845991,1000.0,0.00021096,2]
[332010648,1720933846082,-433.76535871,0.00024657,2]
[332010651,1720933846092,-500.0,0.00024657,2]
[332010654,1720933846102,-319.51533363,0.00024921,3]
[332010657,1720933846113,-300.0,0.0002493,2]
[332010659,1720933846123,-500.0,0.0002493,2]
[332010660,1720933846132,-500.0,0.0002493,2]
[332010662,1720933846142,-500.0,0.0002493,2]
[332010664,1720933846151,-500.0,0.0002493,2]
[332010666,1720933846161,-500.0,0.0002493,2]
[332010668,1720933846170,-5549.95367355,0.00024931,5]
[332011047,1720933850686,521.34976437,0.00018,2]
[332016677,1720934226869,154.80965768,0.00014999,2]
[332016678,1720934231870,287.90952916,0.00014999,2]
[332016681,1720934294909,803.36733613,0.00014999,2]
[332016683,1720934311161,320.48190584,0.00014999,2]
[332016684,1720934329378,155.50694253,0.00014999,2]
[332016685,1720934334550,246.05835787,0.00014999,2]
[332016686,1720934337409,935.75142343,0.00014999,2]
[332016687,1720934349830,155.71394087,0.00014999,2]
[332016688,1720934376722,340.99069964,0.00014999,2]
[332016699,1720934394073,1793.90559045,0.00014999,2]
[332016700,1720934398890,241.48272289,0.00014999,2]
[332016701,1720934611395,598.24214223,0.00014999,2]
[332016702,1720934637655,182.31591661,0.0002525,120]
[332016704,1720934744185,-198.0071435,0.00019039,2]
[332016705,1720934744206,-2.45653799,0.0002,2]
[332016707,1720934837105,-152.20843618,0.0002,2]
[332016708,1720934837128,-892.77054082,0.0002,2]
[332016709,1720934837157,-2013.24803,0.0002,2]
[332016710,1720934837180,-428.62808121,0.0002,2]
[332016711,1720934837204,-1042.8469602,0.00020337,2]
[332016712,1720934837227,-166.207179,0.00020407,2]
[332016713,1720934837251,-190.925402,0.00021096,2]
[332016714,1720934837276,-484.3499174,0.00021229,2]
[332016715,1720934837299,-161.919359,0.00021736,2]
[332016716,1720934837321,-166.666666,0.00021918,2]
[332016717,1720934837344,-240.00502341,0.00022,2]
[332016718,1720934837369,-24900.0,0.0002201,2]
[332016719,1720934837391,-150.0,0.00022557,2]
[332016720,1720934837412,-500.0,0.00022941,2]
[332016721,1720934837437,-500.0,0.00022941,2]
[332016722,1720934837460,-500.0,0.00022941,2]
[332016723,1720934837481,-493.0619361,0.00022941,2]
[332016724,1720934837502,-2136.39217822,0.00022942,2]
[332016725,1720934837523,-2670.02522048,0.0002418,2]
[332016726,1720934837545,-2670.02522049,0.00024525,2]
[332016727,1720934837567,-2425.60663555,0.00024556,2]
[332016728,1720934837588,-366.6405652,0.00024584,2]
[332016729,1720934837612,-2425.60663554,0.00024622,2]
[332016730,1720934837638,-21731.11941922,0.00024647,3]
[332016731,1720934848132,-5936.80849248,0.00024647,3]
[332016746,1720934947088,-232.29121549,0.00021,2]
[332016752,1720934996833,212.564619,0.00021096,2]
[332016753,1720934996854,537.435381,0.00021096,2]
[332016810,1720935038693,-2136.39217822,0.00023453,2]
[332016812,1720935038704,-191.30476359,0.00023968,2]
[332016814,1720935038719,-1427.37290906,0.00024556,2]
[332016816,1720935038730,-1455.36398134,0.00024557,2]
[332016819,1720935038741,-1455.36398132,0.00024623,2]
[332016821,1720935038753,-485.09,0.00024637,3]
[332016823,1720935038763,-461.84701295,0.00024646,2]
[332016825,1720935038773,-300.0,0.00024646,2]
[332016827,1720935038782,-97152.9503575,0.00024647,3]
[332016829,1720935038795,-893.2074911,0.00024647,2]
[332016831,1720935038805,-495.58847715,0.00024656,2]
[332016833,1720935038814,-262.99380759,0.00024656,2]
[332016835,1720935038824,-566.38653054,0.00024656,2]
[332016837,1720935038836,-1570.21539387,0.00024657,5]
[332016840,1720935038847,-500.0,0.00024657,2]
[332016841,1720935038856,-502.4897851,0.00024657,2]
[332016843,1720935038865,-500.0,0.00024657,2]
[332016845,1720935038875,-500.0,0.00024657,2]
[332016847,1720935038884,-500.0,0.00024657,2]
[332016849,1720935038893,-500.0,0.00024657,2]
[332016851,1720935038903,-500.0,0.00024657,2]
[332016854,1720935038913,-500.0,0.00024657,2]
[332016855,1720935038922,-501.51630534,0.00024657,2]
[332016858,1720935038932,-500.0,0.00024657,2]
[332016860,1720935038941,-500.0,0.00024657,2]
[332016862,1720935038951,-500.0,0.00024657,2]
[332016864,1720935038961,-500.0,0.00024657,2]
[332016866,1720935038970,-546.2455358,0.00024657,2]
[332016868,1720935038980,-636.71901725,0.00024657,2]
[332016870,1720935038989,-500.0,0.00024657,2]
[332016871,1720935038999,-515.79837362,0.00024657,2]
[332016873,1720935039008,-500.0,0.00024657,2]
[332016875,1720935039017,-547.44820062,0.00024657,2]
[332016877,1720935039027,-500.0,0.00024657,2]
[332016879,1720935039037,-500.0,0.00024657,2]
[332016881,1720935039046,-500.0,0.00024657,2]
[332016883,1720935039056,-500.0,0.00024657,2]
[332016885,1720935039064,-500.0,0.00024657,2]
[332016886,1720935039074,-500.0,0.00024657,2]
[332016888,1720935039177,-500.0,0.00024657,2]
[332016889,1720935039188,-500.0,0.00024657,2]
[332016890,1720935039198,-500.0,0.00024657,2]
[332016891,1720935039207,-500.0,0.00024657,2]
[332016892,1720935039216,-501.5831233,0.00024657,2]
[332016893,1720935039225,-500.0,0.00024657,2]
[332016894,1720935039234,-500.0,0.00024657,2]
[332016895,1720935039245,-500.0,0.00024657,2]
[332016896,1720935039254,-500.0,0.00024657,2]
[332016897,1720935039263,-500.0,0.00024657,2]
[332016898,1720935039273,-500.0,0.00024657,2]
[332016899,1720935039282,-522.14139968,0.00024657,2]
[332016900,1720935039291,-500.0,0.00024657,2]
[332016901,1720935039300,-500.0,0.00024657,2]
[332016902,1720935039311,-500.0,0.00024657,2]
[332016903,1720935039320,-500.0,0.00024657,2]
[332016904,1720935039329,-500.0,0.00024657,2]
[332016905,1720935039338,-500.97064458,0.00024657,2]
[332016906,1720935039348,-500.0,0.00024657,2]
[332016907,1720935039357,-500.0,0.00024657,2]
[332016908,1720935039367,-500.0,0.00024657,2]
[332016909,1720935039376,-500.0,0.00024657,2]
[332016910,1720935039386,-500.0,0.00024657,2]
[332016911,1720935039395,-500.0,0.00024657,2]
[332016912,1720935039405,-500.0,0.00024657,2]
[332016913,1720935039414,-501.00048116,0.00024657,2]
[332016914,1720935039424,-500.0,0.00024657,2]
[332016915,1720935039433,-507.688302,0.00024657,2]
[332016916,1720935039442,-501.50442974,0.00024657,2]
[332016917,1720935039452,-516.56867563,0.00024657,2]
[332016918,1720935039461,-500.0,0.00024657,2]
[332016919,1720935039471,-500.0,0.00024657,2]
[332016920,1720935039480,-500.0,0.00024657,2]
[332016921,1720935039489,-508.06169162,0.00024657,2]
[332016922,1720935039499,-500.0,0.00024657,2]
[332016923,1720935039508,-500.46388134,0.00024657,2]
[332016924,1720935039517,-500.0,0.00024657,2]
[332016925,1720935039526,-500.0,0.00024657,2]
[332016926,1720935039536,-500.0,0.00024657,2]
[332016927,1720935039546,-507.12997266,0.00024657,2]
[332016928,1720935039555,-503.48460947,0.00024657,2]
[332016929,1720935039564,-500.0,0.00024657,2]
[332016930,1720935039574,-500.0,0.00024657,2]
[332016931,1720935039584,-500.0,0.00024657,2]
[332016932,1720935039593,-502.05531911,0.00024657,2]
[332016934,1720935039603,-500.0,0.00024657,2]
[332016936,1720935039613,-500.0,0.00024657,2]
[332016937,1720935039622,-500.0,0.00024657,2]
[332016939,1720935039632,-500.0,0.00024657,2]
[332016941,1720935039641,-500.0,0.00024657,2]
[332016942,1720935039651,-500.0,0.00024657,2]
[332016944,1720935039660,-500.0,0.00024657,2]
[332016946,1720935039669,-502.2440729,0.00024657,2]
[332016947,1720935039680,-500.0,0.00024657,2]
[332016948,1720935039689,-502.14104383,0.00024657,2]
[332016949,1720935039699,-1500.0,0.00024657,2]
[332016951,1720935039709,-500.0,0.00024657,2]
[332016952,1720935039721,-500.0,0.00024657,2]
[332016953,1720935039731,-500.0,0.00024657,2]
[332016954,1720935039740,-500.0,0.00024657,2]
[332016955,1720935039749,-500.0,0.00024657,2]
[332016956,1720935039759,-500.0,0.00024657,2]
[332016957,1720935039768,-500.0,0.00024657,2]
[332016958,1720935039777,-500.0,0.00024657,2]
[332016959,1720935039787,-500.0,0.00024657,2]
[332016960,1720935039798,-500.0,0.00024657,2]
[332016961,1720935039808,-500.0,0.00024657,2]
[332016962,1720935039817,-500.0,0.00024657,2]
[332016963,1720935039827,-500.0,0.00024657,2]
[332016964,1720935039839,-500.0,0.00024657,2]
[332016965,1720935039849,-500.0,0.00024657,2]
[332016966,1720935039858,-500.0,0.00024657,2]
[332016967,1720935039868,-500.0,0.00024657,2]
[332016968,1720935039878,-501.1500808,0.00024657,2]
[332016969,1720935039888,-500.0,0.00024657,2]
[332016970,1720935039897,-500.0,0.00024657,2]
[332016971,1720935039906,-500.0,0.00024657,2]
[332016972,1720935039915,-505.05585706,0.00024657,2]
[332016973,1720935039924,-500.0,0.00024657,2]
[332016974,1720935039934,-500.0,0.00024657,2]
[332016975,1720935039944,-500.0,0.00024657,2]
[332016976,1720935039953,-500.0,0.00024657,2]
[332016977,1720935039963,-541.52,0.00024657,2]
[332016978,1720935039972,-500.0,0.00024657,2]
[332016979,1720935039981,-500.0,0.00024657,2]
[332016980,1720935039990,-500.0,0.00024657,2]
[332016981,1720935039999,-515.61343694,0.00024657,2]
[332016982,1720935040008,-500.0,0.00024657,2]
[332016983,1720935040017,-500.0,0.00024657,2]
[332016984,1720935040027,-500.0,0.00024657,2]
[332016985,1720935040036,-500.0,0.00024657,2]
[332016986,1720935040046,-500.0,0.00024657,2]
[332016987,1720935040055,-500.0,0.00024657,2]
[332016988,1720935040064,-500.0,0.00024657,2]
[332016989,1720935040073,-500.0,0.00024657,2]
[332016990,1720935040083,-500.0,0.00024657,2]
[332016991,1720935040092,-500.0,0.00024657,2]
[332016992,1720935040101,-500.0,0.00024657,2]
[332016993,1720935040110,-500.0,0.00024657,2]
[332016994,1720935040119,-500.0,0.00024657,2]
[332016995,1720935040128,-500.0,0.00024657,2]
[332016996,1720935040138,-500.0,0.00024657,2]
[332016997,1720935040147,-501.40367116,0.00024657,2]
[332016998,1720935040157,-500.0,0.00024657,2]
[332017000,1720935040166,-500.0,0.00024657,2]
[332017001,1720935040175,-500.0,0.00024657,2]
[332017003,1720935040185,-500.0,0.00024657,2]
[332017004,1720935040194,-500.0,0.00024657,2]
[332017005,1720935040204,-500.0,0.00024657,2]
[332017006,1720935040213,-500.0,0.00024657,2]
[332017008,1720935040223,-500.0,0.00024657,2]
[332017009,1720935040232,-573.76512449,0.00024657,2]
[332017011,1720935040241,-500.0,0.00024657,2]
[332017012,1720935040250,-1790.38,0.00024657,2]
[332017014,1720935040259,-500.0,0.00024657,2]
[332017016,1720935040269,-200.0,0.00024657,2]
[332017017,1720935040278,-500.0,0.00024657,2]
[332017018,1720935040287,-500.0,0.00024657,2]
[332017019,1720935040296,-500.0,0.00024657,2]
[332017020,1720935040306,-500.0,0.00024657,2]
[332017021,1720935040316,-500.0,0.00024657,2]
[332017022,1720935040326,-500.0,0.00024657,2]
[332017023,1720935040338,-500.0,0.00024657,2]
[332017024,1720935040347,-719.52,0.00024657,2]
[332017025,1720935040357,-500.0,0.00024657,2]
[332017026,1720935040367,-500.0,0.00024657,2]
[332017027,1720935040376,-500.0,0.00024657,2]
[332017028,1720935040385,-500.0,0.00024657,2]
[332017029,1720935040395,-500.0,0.00024657,2]
[332017030,1720935040404,-509.95851071,0.00024657,2]
[332017031,1720935040414,-500.0,0.00024657,2]
[332017032,1720935040423,-500.0,0.00024657,2]
[332017033,1720935040433,-151.0,0.00024657,7]
[332017034,1720935040442,-151.0,0.00024657,7]
[332017035,1720935040452,-280.270045,0.00024657,7]
[332017036,1720935040462,-500.0,0.00024657,2]
[332017037,1720935040471,-500.0,0.00024657,2]
[332017038,1720935040481,-500.0,0.00024657,2]
[332017039,1720935040490,-500.0,0.00024657,2]
[332017040,1720935040499,-500.0,0.00024657,2]
[332017041,1720935040508,-500.0,0.00024657,2]
[332017042,1720935040517,-500.0,0.00024657,2]
[332017043,1720935040526,-505.1386905,0.00024657,2]
[332017044,1720935040536,-500.0,0.00024657,2]
[332017045,1720935040545,-500.0,0.00024657,2]
[332017046,1720935040554,-500.0,0.00024657,2]
[332017047,1720935040564,-500.0,0.00024657,2]
[332017048,1720935040574,-346.53920951,0.00024657,2]
[332017049,1720935040585,-500.0,0.00024657,2]
[332017050,1720935040594,-500.0,0.00024657,2]
[332017051,1720935040604,-500.0,0.00024657,2]
[332017052,1720935040614,-572.12011919,0.00024657,2]
[332017053,1720935040624,-513.09583869,0.00024657,2]
[332017054,1720935040634,-500.0,0.00024657,2]
[332017055,1720935040643,-500.0,0.00024657,2]
[332017056,1720935040653,-503.17550751,0.00024657,2]
[332017057,1720935040662,-206.79509519,0.00024657,2]
[332017058,1720935040671,-500.0,0.00024657,2]
[332017059,1720935040681,-500.0,0.00024657,2]
[332017060,1720935040691,-508.67752199,0.00024657,2]
[332017061,1720935040702,-500.0,0.00024657,2]
[332017062,1720935040711,-500.0,0.00024657,2]
[332017063,1720935040931,-500.0,0.00024657,2]
[332017064,1720935040941,-500.0,0.00024657,2]
[332017065,1720935040951,-500.0,0.00024657,2]
[332017066,1720935040961,-500.0,0.00024657,2]
[332017067,1720935040971,-505.36727645,0.00024657,2]
[332017068,1720935040980,-500.0,0.00024657,2]
[332017069,1720935040989,-500.0,0.00024657,2]
[332017070,1720935041000,-500.0,0.00024657,2]
[332017071,1720935041010,-500.0,0.00024657,2]
[332017072,1720935041020,-500.0,0.00024657,2]
[332017073,1720935041030,-500.0,0.00024657,2]
[332017074,1720935041039,-500.0,0.00024657,2]
[332017075,1720935041049,-500.0,0.00024657,2]
[332017076,1720935041059,-500.0,0.00024657,2]
[332017077,1720935041068,-500.0,0.00024657,2]
[332017078,1720935041077,-500.0,0.00024657,2]
[332017079,1720935041088,-503.56781428,0.00024657,2]
[332017080,1720935041098,-500.0,0.00024657,2]
[332017081,1720935041107,-500.0,0.00024657,2]
[332017082,1720935041116,-500.0,0.00024657,2]
[332017083,1720935041210,-520.027836,0.00024657,2]
[332017084,1720935041220,-512.88352507,0.00024657,2]
[332017085,1720935041230,-500.0,0.00024657,2]
[332017086,1720935041240,-151.0,0.00024657,7]
[332017087,1720935041250,-151.0,0.00024657,7]
[332017088,1720935041260,-500.0,0.00024657,2]
[332017089,1720935041270,-253.929709,0.00024657,7]
[332017090,1720935041279,-253.929709,0.00024657,7]
[332017091,1720935041288,-151.0,0.00024657,7]
[332017092,1720935041298,-151.0,0.00024657,7]
[332017093,1720935041309,-500.0,0.00024657,2]
[332017094,1720935041318,-500.0,0.00024657,2]
[332017095,1720935041327,-500.0,0.00024657,2]
[332017096,1720935041338,-253.929709,0.00024657,7]
[332017097,1720935041347,-253.929709,0.00024657,7]
[332017098,1720935041356,-500.0,0.00024657,2]
[332017099,1720935041366,-500.0,0.00024657,2]
[332017100,1720935041376,-502.72536613,0.00024657,2]
[332017101,1720935041386,-500.0,0.00024657,2]
[332017102,1720935041396,-500.0,0.00024657,2]
[332017103,1720935041406,-500.0,0.00024657,2]
[332017104,1720935041415,-500.0,0.00024657,2]
[332017105,1720935041424,-500.0,0.00024657,2]
[332017106,1720935041434,-500.0,0.00024657,2]
[332017107,1720935041443,-500.0,0.00024657,2]
[332017108,1720935041453,-500.0,0.00024657,2]
[332017109,1720935041462,-550.65979157,0.00024657,2]
[332017110,1720935041471,-500.0,0.00024657,2]
[332017111,1720935041480,-500.0,0.00024657,2]
[332017112,1720935041490,-500.0,0.00024657,2]
[332017113,1720935041501,-500.0,0.00024657,2]
[332017114,1720935041512,-500.0,0.00024657,2]
[332017115,1720935041521,-500.0,0.00024657,2]
[332017116,1720935041532,-500.0,0.00024657,2]